[Event "Early-Titled-Tuesday-Blitz-April-16-2024"]
[Site "Chess.com"]
[Date "2024.04.16"]
[Round "9"]
[White "Gryffindorac8"]
[Black "Lion-Al-Messi"]
[Result "0-1"]
[WhiteElo "2443"]
[BlackElo "2578"]
[TimeControl "180+1"]
[EndTime "9:49:32 PDT"]
[Termination "Lion-Al-Messi won by resignation"]

1. d4 {[%clk 0:03:00.9]} 1... Nf6 {[%clk 0:02:59.8]} 2. c4 {[%clk 0:03:00.2]}
2... b6 {[%clk 0:03:00.2]} 3. Nc3 {[%clk 0:02:54.5]} 3... Bb7 {[%clk 0:02:59.9]}
4. Nf3 {[%clk 0:02:48.7]} 4... e6 {[%clk 0:02:59.4]} 5. g3 {[%clk 0:02:48.1]}
5... Be7 {[%clk 0:02:56.6]} 6. Bg2 {[%clk 0:02:47.9]} 6... O-O {[%clk 0:02:57]}
7. O-O {[%clk 0:02:48]} 7... Ne4 {[%clk 0:02:57.1]} 8. Qc2 {[%clk 0:02:48.5]}
8... Nxc3 {[%clk 0:02:57.2]} 9. Qxc3 {[%clk 0:02:49.4]} 9... c5 {[%clk
0:02:53.4]} 10. Bf4 {[%clk 0:02:24.8]} 10... Bf6 {[%clk 0:02:50.4]} 11. Bd6
{[%clk 0:02:18.4]} 11... Re8 {[%clk 0:02:47.9]} 12. Qd2 {[%clk 0:02:14]} 12...
cxd4 {[%clk 0:02:44.5]} 13. Nxd4 {[%clk 0:02:14.9]} 13... Bxg2 {[%clk 0:02:44]}
14. Kxg2 {[%clk 0:02:15.8]} 14... Nc6 {[%clk 0:02:43.8]} 15. Nf3 {[%clk
0:02:07.4]} 15... Rc8 {[%clk 0:02:41.9]} 16. Rad1 {[%clk 0:02:05.9]} 16... Na5
{[%clk 0:02:41.1]} 17. b3 {[%clk 0:02:05.3]} 17... Nb7 {[%clk 0:02:35.3]} 18.
Ba3 {[%clk 0:01:52.7]} 18... Rc7 {[%clk 0:02:34.9]} 19. h4 {[%clk 0:01:50]}
19... h6 {[%clk 0:02:34.4]} 20. e4 {[%clk 0:01:45.7]} 20... Be7 {[%clk
0:02:32.6]} 21. Bxe7 {[%clk 0:01:41.3]} 21... Qxe7 {[%clk 0:02:33.5]} 22. e5
{[%clk 0:01:40.4]} 22... Rd8 {[%clk 0:02:33.9]} 23. Rfe1 {[%clk 0:01:35.7]}
23... d6 {[%clk 0:02:33.2]} 24. exd6 {[%clk 0:01:31.9]} 24... Rxd6 {[%clk
0:02:34.1]} 25. Qe2 {[%clk 0:01:31.3]} 25... Rcd7 {[%clk 0:02:33.9]} 26. Ne5
{[%clk 0:01:25.3]} 26... Rxd1 {[%clk 0:02:30.1]} 27. Rxd1 {[%clk 0:01:26.2]}
27... Rxd1 {[%clk 0:02:30.3]} 28. Qxd1 {[%clk 0:01:27.1]} 28... Nc5 {[%clk
0:02:30.5]} 29. Kg1 {[%clk 0:01:20.4]} 29... Ne4 {[%clk 0:02:27.9]} 30. Qd4
{[%clk 0:01:16.6]} 30... Nf6 {[%clk 0:02:13.5]} 31. Nc6 {[%clk 0:01:09]} 31...
Qc7 {[%clk 0:02:12.2]} 32. Ne5 {[%clk 0:00:58.3]} 32... h5 {[%clk 0:02:05.8]}
33. b4 {[%clk 0:00:57.3]} 33... Qb7 {[%clk 0:01:53.2]} 34. c5 {[%clk 0:00:55.7]}
34... bxc5 {[%clk 0:01:53.3]} 35. bxc5 {[%clk 0:00:56.6]} 35... Qd5 {[%clk
0:01:49]} 36. Qxd5 {[%clk 0:00:42.5]} 36... Nxd5 {[%clk 0:01:49.9]} 37. Nc6
{[%clk 0:00:40.7]} 37... a6 {[%clk 0:01:45.8]} 38. Nb8 {[%clk 0:00:39.3]} 38...
Nc7 {[%clk 0:01:45.7]} 39. Kg2 {[%clk 0:00:36.5]} 39... Kf8 {[%clk 0:01:44.8]}
40. Nd7+ {[%clk 0:00:35.3]} 40... Ke7 {[%clk 0:01:44.8]} 41. Nb6 {[%clk
0:00:35.6]} 41... e5 {[%clk 0:01:33.8]} 42. Kf3 {[%clk 0:00:34.7]} 42... Ke6
{[%clk 0:01:33.1]} 43. Ke4 {[%clk 0:00:32.8]} 43... f5+ {[%clk 0:01:32.7]} 44.
Kd3 {[%clk 0:00:31.1]} 44... f4 {[%clk 0:01:31.7]} 45. gxf4 {[%clk 0:00:25.8]}
45... exf4 {[%clk 0:01:32.6]} 46. Ke4 {[%clk 0:00:26.2]} 46... Kf7 {[%clk
0:01:17.1]} 47. Kxf4 {[%clk 0:00:24.7]} 47... Ne6+ {[%clk 0:01:17.4]} 48. Kf5
{[%clk 0:00:20.6]} 48... Nxc5 {[%clk 0:01:18.3]} 49. Nc4 {[%clk 0:00:17.7]}
49... g6+ {[%clk 0:01:14.1]} 50. Kf4 {[%clk 0:00:12.5]} 50... Kf6 {[%clk
0:01:14]} 51. Nd6 {[%clk 0:00:10.8]} 51... Nd3+ {[%clk 0:01:11.5]} 52. Ke3
{[%clk 0:00:10.7]} 52... Ne5 {[%clk 0:01:12.2]} 53. Ne4+ {[%clk 0:00:10.3]}
53... Kf5 {[%clk 0:01:11.6]} 54. f3 {[%clk 0:00:09.3]} 54... Nc4+ {[%clk
0:01:09.8]} 55. Kd4 {[%clk 0:00:09.6]} 55... Ne5 {[%clk 0:01:03]} 56. Ke3 {[%clk
0:00:09.1]} 56... Nf7 {[%clk 0:01:01.1]} 57. Ng3+ {[%clk 0:00:05.4]} 57... Ke6
{[%clk 0:00:58.8]} 58. Ne4 {[%clk 0:00:06.3]} 58... Ke5 {[%clk 0:00:56.1]} 59.
Nc3 {[%clk 0:00:05.6]} 59... Nd6 {[%clk 0:00:52.6]} 60. Ne4 {[%clk 0:00:05.8]}
60... Nf5+ {[%clk 0:00:52.6]} 61. Kf2 {[%clk 0:00:05.5]} 61... Nxh4 {[%clk
0:00:53.5]} 62. Ng3 {[%clk 0:00:04.8]} 62... Nf5 {[%clk 0:00:53]} 63. Kg2 {[%clk
0:00:04.4]} 63... Nxg3 {[%clk 0:00:53]} 64. Kxg3 {[%clk 0:00:04.7]} 64... g5
{[%clk 0:00:53.5]} 65. Kf2 {[%clk 0:00:03.4]} 65... Kf4 {[%clk 0:00:53.3]} 66.
Kg2 {[%clk 0:00:03.8]} 66... a5 {[%clk 0:00:53.8]} 67. a3 {[%clk 0:00:04.2]}
67... a4 {[%clk 0:00:54.3]} 68. Kf2 {[%clk 0:00:04.9]} 68... h4 {[%clk
0:00:52.7]} 69. Kg2 {[%clk 0:00:05.8]} 69... h3+ {[%clk 0:00:53]} 70. Kxh3
{[%clk 0:00:06.7]} 70... Kxf3 {[%clk 0:00:53]} 0-1

[Event "Early-Titled-Tuesday-Blitz-April-16-2024"]
[Site "Chess.com"]
[Date "2024.04.16"]
[Round "9"]
[White "Meri-Arabidze"]
[Black "FARIZA2018"]
[Result "0-1"]
[WhiteElo "2674"]
[BlackElo "2573"]
[TimeControl "180+1"]
[EndTime "9:49:34 PDT"]
[Termination "FARIZA2018 won on time"]

1. Nf3 {[%clk 0:03:00.9]} 1... d5 {[%clk 0:02:59.8]} 2. b3 {[%clk 0:03:01]} 2...
Nf6 {[%clk 0:02:59.4]} 3. Bb2 {[%clk 0:03:01.3]} 3... e6 {[%clk 0:02:59.7]} 4.
g3 {[%clk 0:03:01.5]} 4... c5 {[%clk 0:02:59.7]} 5. Bg2 {[%clk 0:03:01.9]} 5...
Nc6 {[%clk 0:03:00]} 6. O-O {[%clk 0:03:02.1]} 6... Be7 {[%clk 0:02:59.9]} 7. c4
{[%clk 0:03:02.4]} 7... d4 {[%clk 0:02:59.7]} 8. e3 {[%clk 0:03:02.6]} 8... e5
{[%clk 0:02:59.4]} 9. d3 {[%clk 0:02:59.6]} 9... O-O {[%clk 0:02:58.5]} 10. e4
{[%clk 0:02:53.4]} 10... a6 {[%clk 0:02:47]} 11. a3 {[%clk 0:02:50.9]} 11... Be6
{[%clk 0:02:40.5]} 12. Nbd2 {[%clk 0:02:48.5]} 12... h6 {[%clk 0:02:39.7]} 13.
Nh4 {[%clk 0:02:47.4]} 13... Qd7 {[%clk 0:02:37.5]} 14. Qe1 {[%clk 0:02:26.1]}
14... Rae8 {[%clk 0:02:29.6]} 15. f4 {[%clk 0:02:19]} 15... exf4 {[%clk
0:02:20.1]} 16. gxf4 {[%clk 0:02:19.9]} 16... Qc7 {[%clk 0:02:12.5]} 17. h3
{[%clk 0:01:55.8]} 17... Bc8 {[%clk 0:01:56.8]} 18. e5 {[%clk 0:01:50.8]} 18...
Nh5 {[%clk 0:01:44.7]} 19. Ne4 {[%clk 0:01:42.3]} 19... Qd8 {[%clk 0:01:26.4]}
20. Qd1 {[%clk 0:00:47.3]} 20... g6 {[%clk 0:01:25.8]} 21. Nf3 {[%clk
0:00:38.2]} 21... Nxf4 {[%clk 0:01:25]} 22. Bc1 {[%clk 0:00:38.4]} 22... Nxg2
{[%clk 0:01:02.7]} 23. Kxg2 {[%clk 0:00:39.3]} 23... Kg7 {[%clk 0:01:02.2]} 24.
Bf4 {[%clk 0:00:33.1]} 24... Qd7 {[%clk 0:00:57.3]} 25. Rh1 {[%clk 0:00:32.4]}
25... Qf5 {[%clk 0:00:56]} 26. Qd2 {[%clk 0:00:31.1]} 26... g5 {[%clk
0:00:55.8]} 27. Bg3 {[%clk 0:00:24]} 27... Qg6 {[%clk 0:00:47.9]} 28. Raf1
{[%clk 0:00:20.9]} 28... Bf5 {[%clk 0:00:47.9]} 29. Nf6 {[%clk 0:00:14.3]} 29...
Bxf6 {[%clk 0:00:44.1]} 30. exf6+ {[%clk 0:00:15.2]} 30... Qxf6 {[%clk
0:00:39.2]} 31. h4 {[%clk 0:00:14.8]} 31... Re3 {[%clk 0:00:37.2]} 32. hxg5
{[%clk 0:00:13.5]} 32... hxg5 {[%clk 0:00:37.4]} 33. Rh5 {[%clk 0:00:06.5]}
33... Rfe8 {[%clk 0:00:29.2]} 34. Rxg5+ {[%clk 0:00:06.4]} 34... Bg6 {[%clk
0:00:28.6]} 35. Rf2 {[%clk 0:00:04.2]} 35... Rxf3 {[%clk 0:00:28.1]} 36. Rxf3
{[%clk 0:00:03.9]} 36... Qe6 {[%clk 0:00:24.3]} 37. Bf4 {[%clk 0:00:04]} 37...
Ne7 {[%clk 0:00:22.1]} 38. Rgg3 {[%clk 0:00:03.5]} 38... Nf5 {[%clk 0:00:21.7]}
39. Rg5 {[%clk 0:00:02.6]} 39... Nh4+ {[%clk 0:00:21.9]} 40. Kg3 {[%clk
0:00:03]} 40... Nxf3 {[%clk 0:00:21.8]} 41. Kxf3 {[%clk 0:00:03.5]} 41... Qh3+
{[%clk 0:00:22.1]} 42. Rg3 {[%clk 0:00:03.4]} 42... Qf1+ {[%clk 0:00:21.4]} 43.
Kg4 {[%clk 0:00:03.4]} 43... Rh8 {[%clk 0:00:15.7]} 44. Be5+ {[%clk 0:00:03.4]}
44... f6 {[%clk 0:00:16]} 45. Bf4 {[%clk 0:00:02.9]} 45... Rh5 {[%clk
0:00:14.5]} 0-1

[Event "Early-Titled-Tuesday-Blitz-April-16-2024"]
[Site "Chess.com"]
[Date "2024.04.16"]
[Round "9"]
[White "Mikhail_Golubev"]
[Black "NikitaShnadrygin"]
[Result "0-1"]
[WhiteElo "2596"]
[BlackElo "2745"]
[TimeControl "180+1"]
[EndTime "9:49:37 PDT"]
[Termination "NikitaShnadrygin won on time"]

1. e4 {[%clk 0:02:58.5]} 1... c5 {[%clk 0:02:59.6]} 2. Nf3 {[%clk 0:02:57.7]}
2... e6 {[%clk 0:02:59.8]} 3. d4 {[%clk 0:02:57.6]} 3... cxd4 {[%clk 0:02:59.8]}
4. Nxd4 {[%clk 0:02:58.5]} 4... Nf6 {[%clk 0:02:59.7]} 5. Nc3 {[%clk 0:02:58.6]}
5... Nc6 {[%clk 0:03:00.3]} 6. a3 {[%clk 0:02:58.2]} 6... Be7 {[%clk 0:02:59.7]}
7. Nxc6 {[%clk 0:02:57.2]} 7... bxc6 {[%clk 0:02:58.2]} 8. e5 {[%clk 0:02:55.2]}
8... Nd5 {[%clk 0:02:46.4]} 9. Qg4 {[%clk 0:02:54.4]} 9... Nxc3 {[%clk
0:02:06.5]} 10. Qxg7 {[%clk 0:02:44.1]} 10... Rf8 {[%clk 0:02:06.4]} 11. bxc3
{[%clk 0:02:44.3]} 11... Qa5 {[%clk 0:02:06.4]} 12. Qg3 {[%clk 0:02:15.3]} 12...
f5 {[%clk 0:00:56.7]} 13. exf6 {[%clk 0:01:40.5]} 13... Bxf6 {[%clk 0:00:54.6]}
14. Bd2 {[%clk 0:01:40.5]} 14... Ke7 {[%clk 0:00:41.3]} 15. Bd3 {[%clk
0:01:24.1]} 15... Ba6 {[%clk 0:00:40.4]} 16. O-O {[%clk 0:01:17.2]} 16... Rg8
{[%clk 0:00:29.6]} 17. Qh3 {[%clk 0:01:13.9]} 17... Raf8 {[%clk 0:00:27.9]} 18.
Rfe1 {[%clk 0:00:44.3]} 18... Rf7 {[%clk 0:00:24.7]} 19. Re3 {[%clk 0:00:39.8]}
19... Bg5 {[%clk 0:00:20.6]} 20. Rg3 {[%clk 0:00:34]} 20... Rfg7 {[%clk
0:00:12.7]} 21. Bxg5+ {[%clk 0:00:30.6]} 21... Rxg5 {[%clk 0:00:13.6]} 22. Qxh7+
{[%clk 0:00:30.3]} 22... R8g7 {[%clk 0:00:14.3]} 23. Qh4 {[%clk 0:00:30.1]}
23... Bxd3 {[%clk 0:00:12.6]} 24. cxd3 {[%clk 0:00:28.5]} 24... Qxc3 {[%clk
0:00:12.9]} 25. Rf1 {[%clk 0:00:28]} 25... Qf6 {[%clk 0:00:13.6]} 26. Qb4+
{[%clk 0:00:22.9]} 26... Kf7 {[%clk 0:00:13.7]} 27. Qd6 {[%clk 0:00:19.7]} 27...
Rd5 {[%clk 0:00:13]} 28. Qc7 {[%clk 0:00:17.8]} 28... Qd4 {[%clk 0:00:07.6]} 29.
Rf3+ {[%clk 0:00:16.7]} 29... Rf5 {[%clk 0:00:07.5]} 30. Rxf5+ {[%clk
0:00:16.1]} 30... exf5 {[%clk 0:00:08.4]} 31. Re1 {[%clk 0:00:14.5]} 31... Qd5
{[%clk 0:00:08]} 32. g3 {[%clk 0:00:13]} 32... Rg6 {[%clk 0:00:06.2]} 33. Qf4
{[%clk 0:00:11.8]} 33... Re6 {[%clk 0:00:06.2]} 34. Rxe6 {[%clk 0:00:11.1]}
34... Kxe6 {[%clk 0:00:06.5]} 35. d4 {[%clk 0:00:10.8]} 35... d6 {[%clk
0:00:04.4]} 36. h4 {[%clk 0:00:10.8]} 36... Kd7 {[%clk 0:00:04.9]} 37. h5 {[%clk
0:00:10.8]} 37... c5 {[%clk 0:00:04.7]} 38. dxc5 {[%clk 0:00:10]} 38... dxc5
{[%clk 0:00:05.6]} 39. h6 {[%clk 0:00:10.1]} 39... Qf7 {[%clk 0:00:05.2]} 40.
Qe5 {[%clk 0:00:09]} 40... c4 {[%clk 0:00:04.9]} 41. Qb5+ {[%clk 0:00:04.6]}
41... Kd6 {[%clk 0:00:04.5]} 42. Qa6+ {[%clk 0:00:03.4]} 42... Kd5 {[%clk
0:00:04.2]} 43. Kf1 {[%clk 0:00:02.2]} 43... Kd4 {[%clk 0:00:04.3]} 44. Qa5
{[%clk 0:00:01.8]} 44... c3 {[%clk 0:00:04]} 45. Qb4+ {[%clk 0:00:02.1]} 45...
Kd3 {[%clk 0:00:04.1]} 46. Qb5+ {[%clk 0:00:01.4]} 46... Kc2 {[%clk 0:00:04.6]}
47. Qe2+ {[%clk 0:00:01.7]} 47... Kb3 {[%clk 0:00:04.6]} 48. Qb5+ {[%clk
0:00:02.3]} 48... Ka2 {[%clk 0:00:04.9]} 49. Qa5 {[%clk 0:00:02.2]} 49... Qc4+
{[%clk 0:00:04.5]} 50. Kg1 {[%clk 0:00:01.2]} 50... c2 {[%clk 0:00:05.4]} 0-1

[Event "Early-Titled-Tuesday-Blitz-April-16-2024"]
[Site "Chess.com"]
[Date "2024.04.16"]
[Round "9"]
[White "SaiAgni_98"]
[Black "teresin05"]
[Result "0-1"]
[WhiteElo "2471"]
[BlackElo "2350"]
[TimeControl "180+1"]
[EndTime "9:49:37 PDT"]
[Termination "teresin05 won by resignation"]

1. e4 {[%clk 0:02:57.3]} 1... c5 {[%clk 0:02:59.6]} 2. Nc3 {[%clk 0:02:55.4]}
2... Nc6 {[%clk 0:03:00]} 3. Bc4 {[%clk 0:02:54.4]} 3... e6 {[%clk 0:02:57.9]}
4. f4 {[%clk 0:02:52.8]} 4... a6 {[%clk 0:02:57.5]} 5. a4 {[%clk 0:02:50.2]}
5... Nge7 {[%clk 0:02:41.5]} 6. e5 {[%clk 0:02:50.2]} 6... d5 {[%clk 0:02:37.6]}
7. exd6 {[%clk 0:02:50.1]} 7... Nf5 {[%clk 0:02:32.9]} 8. Nf3 {[%clk 0:02:48.3]}
8... Bxd6 {[%clk 0:02:32]} 9. d3 {[%clk 0:02:47.7]} 9... O-O {[%clk 0:02:27.4]}
10. O-O {[%clk 0:02:46.5]} 10... Qc7 {[%clk 0:02:19.5]} 11. g3 {[%clk
0:02:39.6]} 11... Bd7 {[%clk 0:02:14.3]} 12. Ne4 {[%clk 0:02:39.5]} 12... Be7
{[%clk 0:02:08]} 13. c3 {[%clk 0:02:39.3]} 13... Nd6 {[%clk 0:01:50.1]} 14. Ba2
{[%clk 0:02:24.8]} 14... Rfd8 {[%clk 0:01:40.5]} 15. Qc2 {[%clk 0:02:14.1]}
15... b5 {[%clk 0:01:23]} 16. Be3 {[%clk 0:02:11.6]} 16... Nxe4 {[%clk
0:01:22.2]} 17. dxe4 {[%clk 0:02:12.5]} 17... c4 {[%clk 0:01:13]} 18. Bb1 {[%clk
0:01:48.1]} 18... e5 {[%clk 0:01:02.4]} 19. fxe5 {[%clk 0:01:35.9]} 19... Nxe5
{[%clk 0:01:03.3]} 20. Nxe5 {[%clk 0:01:36.3]} 20... Qxe5 {[%clk 0:01:04.2]} 21.
Bd4 {[%clk 0:01:36.7]} 21... Bc5 {[%clk 0:01:02.3]} 22. Qf2 {[%clk 0:01:33.1]}
22... Bxd4 {[%clk 0:00:58.7]} 23. cxd4 {[%clk 0:01:34]} 23... Qe7 {[%clk
0:00:54.7]} 24. axb5 {[%clk 0:01:33.8]} 24... axb5 {[%clk 0:00:54]} 25. Rxa8
{[%clk 0:01:34.1]} 25... Rxa8 {[%clk 0:00:54.8]} 26. e5 {[%clk 0:01:29.3]} 26...
Bc6 {[%clk 0:00:52.3]} 27. Qf5 {[%clk 0:01:22.6]} 27... g6 {[%clk 0:00:49.8]}
28. Qf4 {[%clk 0:01:11.9]} 28... Rd8 {[%clk 0:00:42.9]} 29. Qe3 {[%clk
0:00:55.3]} 29... Qd7 {[%clk 0:00:37.2]} 30. Rf4 {[%clk 0:00:54.7]} 30... Qa7
{[%clk 0:00:23.8]} 31. Kf2 {[%clk 0:00:48.9]} 31... Qa1 {[%clk 0:00:20.6]} 32.
Qc1 {[%clk 0:00:49.1]} 32... Qa7 {[%clk 0:00:18.1]} 33. Ke3 {[%clk 0:00:44.6]}
33... Rd5 {[%clk 0:00:13.7]} 34. Re4 {[%clk 0:00:35.9]} 34... Qe7 {[%clk
0:00:06.6]} 35. h4 {[%clk 0:00:24.8]} 35... Rd7 {[%clk 0:00:05.2]} 36. Rf4
{[%clk 0:00:25]} 36... Bd5 {[%clk 0:00:05]} 37. Be4 {[%clk 0:00:21]} 37... Qb4
{[%clk 0:00:05.3]} 38. Bxd5 {[%clk 0:00:20.1]} 38... Rxd5 {[%clk 0:00:06.2]} 39.
Qc3 {[%clk 0:00:19.7]} 39... Qe7 {[%clk 0:00:02.9]} 40. Rf6 {[%clk 0:00:16.4]}
40... Qd7 {[%clk 0:00:02.8]} 41. Rf4 {[%clk 0:00:13.9]} 41... Kg7 {[%clk
0:00:02.5]} 42. Kf2 {[%clk 0:00:12.7]} 42... Qb7 {[%clk 0:00:02.9]} 43. Qf3
{[%clk 0:00:11.4]} 43... Qd7 {[%clk 0:00:02.3]} 44. Qe3 {[%clk 0:00:09.7]} 44...
b4 {[%clk 0:00:01.8]} 45. Kg2 {[%clk 0:00:09.6]} 45... Qe6 {[%clk 0:00:02.3]}
46. Qd2 {[%clk 0:00:08.9]} 46... Qc6 {[%clk 0:00:01.9]} 47. Qxb4 {[%clk
0:00:08.5]} 47... Rb5+ {[%clk 0:00:01.6]} 48. d5 {[%clk 0:00:09]} 48... Qxd5+
{[%clk 0:00:02]} 0-1

[Event "Early-Titled-Tuesday-Blitz-April-16-2024"]
[Site "Chess.com"]
[Date "2024.04.16"]
[Round "9"]
[White "Kobalia"]
[Black "Dixit_Nikhil"]
[Result "1-0"]
[WhiteElo "2824"]
[BlackElo "2618"]
[TimeControl "180+1"]
[EndTime "9:49:38 PDT"]
[Termination "Kobalia won by resignation"]

1. d4 {[%clk 0:03:00.9]} 1... Nf6 {[%clk 0:02:57.8]} 2. Nf3 {[%clk 0:03:00.3]}
2... g6 {[%clk 0:02:58.2]} 3. Bg5 {[%clk 0:02:59]} 3... Bg7 {[%clk 0:02:58.4]}
4. Nbd2 {[%clk 0:02:58.6]} 4... a6 {[%clk 0:02:57.5]} 5. e4 {[%clk 0:02:55.1]}
5... O-O {[%clk 0:02:57]} 6. e5 {[%clk 0:02:54.4]} 6... Ne8 {[%clk 0:02:56.8]}
7. Bc4 {[%clk 0:02:40.9]} 7... b5 {[%clk 0:02:39.8]} 8. Bd5 {[%clk 0:02:38.8]}
8... c6 {[%clk 0:02:38.2]} 9. Bb3 {[%clk 0:02:38.6]} 9... d6 {[%clk 0:02:26.6]}
10. Qe2 {[%clk 0:02:37.5]} 10... d5 {[%clk 0:02:07.9]} 11. h4 {[%clk 0:02:34.1]}
11... h6 {[%clk 0:02:04.7]} 12. Be3 {[%clk 0:02:30.8]} 12... Bg4 {[%clk
0:01:59.3]} 13. Nf1 {[%clk 0:02:21.5]} 13... f5 {[%clk 0:01:38.4]} 14. N1h2
{[%clk 0:02:15.4]} 14... Bh5 {[%clk 0:01:36.8]} 15. O-O-O {[%clk 0:02:11.5]}
15... a5 {[%clk 0:01:33.8]} 16. a3 {[%clk 0:02:08.7]} 16... e6 {[%clk
0:01:29.4]} 17. Rhg1 {[%clk 0:01:49.4]} 17... c5 {[%clk 0:01:10.9]} 18. dxc5
{[%clk 0:01:43.4]} 18... Nc6 {[%clk 0:01:09]} 19. Qd2 {[%clk 0:01:43]} 19...
Nxe5 {[%clk 0:00:57.5]} 20. Nxe5 {[%clk 0:01:37.8]} 20... Bxe5 {[%clk
0:00:57.4]} 21. Nf3 {[%clk 0:01:31]} 21... Bg7 {[%clk 0:00:50.3]} 22. Bxh6
{[%clk 0:01:28.7]} 22... Qf6 {[%clk 0:00:48.5]} 23. Bxg7 {[%clk 0:01:27.8]}
23... Kxg7 {[%clk 0:00:49.2]} 24. Rde1 {[%clk 0:01:23.6]} 24... Nc7 {[%clk
0:00:48.9]} 25. Ne5 {[%clk 0:01:22.1]} 25... b4 {[%clk 0:00:44.7]} 26. Nd7
{[%clk 0:01:11.4]} 26... Qxh4 {[%clk 0:00:44.2]} 27. Rh1 {[%clk 0:01:06.4]}
27... Qe7 {[%clk 0:00:36.3]} 28. Qd4+ {[%clk 0:01:05.1]} 28... Kh6 {[%clk
0:00:33.8]} 29. Nxf8 {[%clk 0:01:03.4]} 29... Rxf8 {[%clk 0:00:33.2]} 30. f3
{[%clk 0:01:02.4]} 30... Nb5 {[%clk 0:00:30.8]} 31. Qe3+ {[%clk 0:00:55.6]}
31... f4 {[%clk 0:00:30.3]} 32. Qxe6 {[%clk 0:00:53.1]} 32... Qxc5 {[%clk
0:00:24.3]} 33. Qxd5 {[%clk 0:00:33.4]} 33... Qxd5 {[%clk 0:00:20.5]} 34. Bxd5
{[%clk 0:00:32.7]} 34... bxa3 {[%clk 0:00:21]} 35. bxa3 {[%clk 0:00:32.8]} 35...
Nxa3 {[%clk 0:00:21.4]} 36. Kb2 {[%clk 0:00:32]} 36... Nb5 {[%clk 0:00:21.4]}
37. c4 {[%clk 0:00:31.6]} 37... Nd4 {[%clk 0:00:21.3]} 38. Kc3 {[%clk
0:00:31.1]} 38... Nf5 {[%clk 0:00:21.3]} 39. c5 {[%clk 0:00:26.7]} 39... a4
{[%clk 0:00:20.1]} 40. c6 {[%clk 0:00:25.6]} 40... Ne3 {[%clk 0:00:19.9]} 41.
Be4 {[%clk 0:00:25.1]} 41... Kg7 {[%clk 0:00:18.2]} 42. Ra1 {[%clk 0:00:22.2]}
42... Nxg2 {[%clk 0:00:17.7]} 43. Rxa4 {[%clk 0:00:21.5]} 43... Ne3 {[%clk
0:00:18.4]} 44. c7 {[%clk 0:00:20.5]} 44... Rc8 {[%clk 0:00:18]} 45. Ra7 {[%clk
0:00:20]} 45... Kf6 {[%clk 0:00:17.4]} 46. Rb1 {[%clk 0:00:19.2]} 46... Bxf3
{[%clk 0:00:08.6]} 47. Bxf3 {[%clk 0:00:18.2]} 47... Ke5 {[%clk 0:00:08.9]} 48.
Rb8 {[%clk 0:00:17]} 48... Rxc7+ {[%clk 0:00:08.3]} 49. Rxc7 {[%clk 0:00:16.4]}
49... Nf5 {[%clk 0:00:08.8]} 50. Rb5+ {[%clk 0:00:14.7]} 50... Kf6 {[%clk
0:00:08.9]} 51. Rc6+ {[%clk 0:00:14.8]} 51... Kg5 {[%clk 0:00:09.3]} 52. Be4
{[%clk 0:00:14.3]} 52... Kg4 {[%clk 0:00:09.1]} 53. Rxg6+ {[%clk 0:00:13.7]}
53... Kh3 {[%clk 0:00:09.5]} 54. Bxf5+ {[%clk 0:00:13.6]} 1-0